Cogmind - Beta 9.2 @@@ ROGUE MODE // 2019.11.16 @ 13:47:09 Player: Pimski Result: Self-destructed Performance ------------- Evolutions (3) 1500 Regions Visited (13) 2600 Robots Destroyed (199) 995 Value Destroyed (4241) 4241 Prototype IDs (51) 1020 Alien Tech Used (0) 0 Bonus (1162) 1162 TOTAL SCORE: 11518 Bonus ------- High Alert Combat Kills 218 Follower Combat Kills 208 Aligned with FarCom 300 Met Imprinter 300 Destroyed Z-Imprinter 1000 Friendly Fire -864 Cogmind --------- Core Integrity 591/700 Matter 300/300 Energy 1100/1100 System Corruption 0% Temperature Cool (0) Movement Flying (96) Ox1 Location -7/Deep Caves Parts ------- > --- POWER (1) -------- Zionite Light DM Reactor > --- PROPULSION (4) --- Improved Flight Unit Improved Flight Unit Improved Flight Unit Improved Flight Unit > --- UTILITY (6) ------ Large Storage Unit Zionite Biocell Advanced Signal Interpreter Advanced Core Analyzer Advanced Weapon Cycler Hacking Suite > --- WEAPON (2) ------- (None) > --- INVENTORY (10) --- Cold Fusion Reactor Improved Flight Unit Improved Flight Unit Experimental Heat Sink Advanced EMP Blaster Mining Claw Chainsword Deploy-a-Sentry Peak State ------------ > --- POWER ------------ Light Angular Momentum Engine > --- PROPULSION ------- Improved Flight Unit Improved Flight Unit Improved Flight Unit Improved Flight Unit > --- UTILITY ---------- Large Storage Unit Gravity Neutralizing Apparatus Advanced Signal Interpreter Advanced Core Analyzer Advanced Weapon Cycler Hacking Suite > --- WEAPON ----------- 8R-AWN's Boregun Katana > --- INVENTORY -------- Cold Fusion Reactor Improved Flight Unit Improved Flight Unit Improved Flight Unit Advanced EMP Blaster Field Lobotomy Kit Mining Claw Chainsword Deploy-a-Sentry [Rating: 63] Favorites ----------- Power Light Nuclear Core Engine Heavy Ion Engine Power Core Light Nuclear Core Reactor Zionite Light DM Reactor Propulsion Light Treads Treads Light Treads Leg Advanced Myomer Leg Flight Unit Improved Flight Unit Utility High-capacity Storage Unit Device Advanced Weapon Cycler Storage High-capacity Storage Unit Processor Advanced Targeting Computer Hackware Hacking Suite Protection Makeshift Armor Plating Weapon Enhanced Autogun Energy Gun Small Laser Ballistic Gun Enhanced Autogun Launcher Rocket Launcher Special Weapon Plasma Cutter Slashing Weapon Katana Build | -11 -10 -10 -9 -9 -9 -8 -8 -8 -7 -7 -7 -7 -7 ------- Run | Scr Mat Min Mat Min Exi Min Mat Sto Fac Low Low Zio Dee Slots Evolved 6 | . . . 2 . . . 2 . 2 . . . . Power . | . . . . . . . . . . . . . . Propulsion 2 | . . . 1 . . . . . 1 . . . . Utility 4 | . . . 1 . . . 2 . 1 . . . . Weapon . | . . . . . . . . . . . . . . Parts Attached 137 | 2 11 3 19 . 37 2 7 22 21 2 . 3 8 Power 16 | . 2 1 2 . 4 . . 2 4 . . . 1 Engine 7 | . 2 . 2 . 2 . . . 1 . . . . Core 6 | . . 1 . . 1 . . 2 2 . . . . Reactor 3 | . . . . . 1 . . . 1 . . . 1 Propulsion 32 | . 2 1 5 . 7 . 2 6 8 . . . 1 Treads 22 | . 2 1 4 . 4 . 2 6 3 . . . . Leg 3 | . . . . . 3 . . . . . . . . Wheel . | . . . . . . . . . . . . . . Hover . | . . . . . . . . . . . . . . Flight 7 | . . . 1 . . . . . 5 . . . 1 Utility 37 | 1 4 . 3 . 12 . 5 1 7 1 . 1 2 Device 8 | . . . . . 3 . 1 1 2 . . . 1 Storage 13 | 1 3 . 1 . 3 . 3 . 1 . . . 1 Processor 4 | . . . 1 . . . 1 . . 1 . 1 . Hackware 3 | . . . . . . . . . 3 . . . . Protection 9 | . 1 . 1 . 6 . . . 1 . . . . Artifact . | . . . . . . . . . . . . . . Weapon 52 | 1 3 1 9 . 14 2 . 13 2 1 . 2 4 Energy Gun 6 | 1 2 . . . 3 . . . . . . . . Energy Cannon . | . . . . . . . . . . . . . . Ballistic Gun 29 | . 1 1 7 . 7 2 . 8 1 . . . 2 Ballistic Cannon . | . . . . . . . . . . . . . . Launcher 8 | . . . 2 . 2 . . 4 . . . . . Special Weapon 2 | . . . . . . . . . . . . . 2 Impact Weapon . | . . . . . . . . . . . . . . Slashing Weapon 7 | . . . . . 2 . . 1 1 1 . 2 . Piercing Weapon . | . . . . . . . . . . . . . . Special Melee Weapon . | . . . . . . . . . . . . . . Unidentified Prototypes 16 | . . . 2 . 7 . . 2 2 . . . 3 Parts Lost 36 | . 1 3 5 . 19 . . 1 1 . . . 6 Power 6 | . . 1 1 . 1 . . 1 1 . . . 1 Propulsion 11 | . . 1 2 . 7 . . . . . . . 1 Utility 5 | . . . . . 4 . . . . . . . 1 Weapon 14 | . 1 1 2 . 7 . . . . . . . 3 Highest Loss Streak 8 | . 1 2 2 . 8 . . 1 1 . . . 6 Average Slot Usage (%) 95 | . 99 94 97 100 88 88 96 99 96 94 100 99 93 Engine 5 | . 14 5 3 11 9 . . . . 7 7 7 4 Core 4 | . . 3 6 . . 11 9 8 5 . . . . Treads 22 | . 24 28 32 33 20 . 5 26 25 . . . . Leg 5 | . 3 . . . 10 33 21 . . . . . . Flight 2 | . . . . . . . . . 4 30 30 30 29 Device 3 | . . . . . 1 . 4 5 8 15 15 15 12 Storage 23 | . 26 28 28 33 19 22 18 27 21 7 7 7 9 Processor 3 | . . . . . . . 8 9 6 2 7 13 15 Hackware 1 | . . . . . . . . . 2 20 15 8 7 Protection 4 | . 1 . 3 . 9 11 9 3 4 . . . . Energy Gun 2 | . 6 14 1 . . 10 . . . . . . . Ballistic Gun 14 | . 21 14 19 22 13 1 18 17 13 . . . . Slashing Weapon 1 | . . . . . . . . . . 9 15 14 6 Naked Turns . | . . . . . . . . . . . . . . Heaviest Build 128 | 17 54 56 78 78 110 99 126 128 117 30 30 31 36 Greatest Support 80 | 20 40 40 60 60 80 80 80 60 80 36 30 36 36 Greatest Overweight (x) 3 | . 1 1 1 1 1 1 3 3 1 . . 1 . Average Overweight (x) . | . . 1 . 1 . 1 1 1 . . . . . Largest Inventory Capacity 34 | 8 18 18 24 24 28 20 28 28 34 10 10 10 10 Average Capacity 20 | 7 15 18 21 24 17 20 20 28 25 10 10 10 10 Most Carried 28 | 6 18 18 24 24 28 20 23 28 28 10 10 10 10 Average Carried 19 | 6 14 17 18 24 16 19 20 27 25 9 10 9 9 Final Capacity 28 | 8 18 18 24 24 20 20 28 28 10 10 10 10 10 Final Carried 28 | 6 18 18 24 24 20 19 22 28 10 10 10 10 8 Class Distribution -------------------- 42% | Hauler-Mutant 33% | Scavenger-Mutant 17% | Mutant 6% | Scavenger-Sprinter Dominant Class ---------------- Mutant | -10/Materials Mutant | -10/Mines Scavenger-Mutant | -9/Materials Hauler-Mutant | -9/Mines Scavenger-Mutant | -9/Exiles Scavenger-Mutant | -8/Mines Scavenger-Mutant | -8/Materials Hauler-Mutant | -8/Storage Hauler-Mutant | -7/Factory Scavenger-Sprinter | -7/Lower Caves Scavenger-Sprinter | -7/Lower Caves Scavenger-Sprinter | -7/Zion Scavenger-Sprinter | -7/Deep Caves Resources | -11 -10 -10 -9 -9 -9 -8 -8 -8 -7 -7 -7 -7 -7 ----------- Run | Scr Mat Min Mat Min Exi Min Mat Sto Fac Low Low Zio Dee Matter Collected 4178 | 232 298 73 625 68 780 25 105 1241 572 20 . 30 109 Remotely . | . . . . . . . . . . . . . . Salvage Created 7256 | 80 546 176 1201 122 382 275 166 2840 1345 . . . 123 Parts 446 | 3 35 15 81 . 67 15 8 157 63 . . . 2 Haulers Intercepted 14 | . 2 . 2 . . . . 6 4 . . . . Recyclers Shooed 11 | . 2 . 1 . . . 2 5 1 . . . . Parts Field Recycled . | . . . . . . . . . . . . . . Retrieved Matter . | . . . . . . . . . . . . . . Parts Self-Destructed . | . . . . . . . . . . . . . . Prevented . | . . . . . . . . . . . . . . Kills | -11 -10 -10 -9 -9 -9 -8 -8 -8 -7 -7 -7 -7 -7 ------- Run | Scr Mat Min Mat Min Exi Min Mat Sto Fac Low Low Zio Dee Combat Hostiles Destroyed 119 | . 9 8 27 4 6 10 3 38 14 . . . . Melee 1 | . . . . . 1 . . . . . . . . Guns 96 | . 9 8 22 4 1 9 3 26 14 . . . . AOE 21 | . . . 5 . 4 . . 12 . . . . . Classes Destroyed 18 | 1 4 . 3 1 2 1 . 5 . . . . 1 Worker 19 | . . . . . . . . 18 1 . . . . Builder 3 | . . . . . . . . 2 1 . . . . Hauler 14 | . 2 . 2 . . . . 6 4 . . . . Recycler 18 | 1 2 . 4 . . . . 5 6 . . . . Mechanic 1 | . . . . . . . . 1 . . . . . Operator 5 | . 1 . . . . . 1 3 . . . . . Turret 1 | . . . . . 1 . . . . . . . . Watcher 4 | . . . 1 . . . . 2 1 . . . . Swarmer 33 | . 3 6 10 . . 7 . 4 3 . . . . Grunt 52 | . 6 2 11 . . 2 2 21 8 . . . . Brawler 1 | . . . . . . . . 1 . . . . . Duelist 3 | . . . 1 . . . . 2 . . . . . Protector 2 | . . . . . . . . 2 . . . . . Sentry 15 | . . . 5 . . . 1 7 2 . . . . Hunter 3 | . . . . . . 1 . 1 1 . . . . Zionite 8 | . . . . . 8 . . . . . . . . Assembled 10 | . . . . 3 7 . . . . . . . . Savage 1 | . . . . . . . . . . . . . 1 Fireman 1 | . . . . . . . . . . . . . 1 Best Kill Streak 10 | 1 3 3 4 3 6 4 2 10 6 . . . . Combat Bots Only 6 | . 3 3 4 3 5 4 2 6 5 . . . . Max Kills in Single Turn 4 | 1 1 1 2 1 4 1 1 4 1 . . . 1 Gunslinging 1 | . . . 1 . . . . . . . . . . Exploded 4 | . . . 2 . 4 . . 3 . . . . . Melee 1 | . . . . . 1 . . . . . . . . Uniques/NPCs Destroyed 3 | . . . . 1 1 . . . . . . . 1 YI-UF0 (-9/Mines) 8R-AWN (-9/Exiles) EX-DEC (-9/Exiles) EX-HEX (-9/Exiles) EX-BIN (-9/Exiles) Z-Imprinter (-7/Deep Caves) Combat | -11 -10 -10 -9 -9 -9 -8 -8 -8 -7 -7 -7 -7 -7 -------- Run | Scr Mat Min Mat Min Exi Min Mat Sto Fac Low Low Zio Dee Damage Taken 6888 | . 358 490 760 253 2003 186 150 1401 700 . . . 587 Core 867 | . 111 92 81 40 211 51 45 127 41 . . . 68 Absorbed by Shields . | . . . . . . . . . . . . . . Core Remaining (%) 47 | 100 . 18 . . . 4 . 68 . . . . . Volleys Fired 511 | 4 44 33 90 12 73 1 13 168 59 . . . 14 Largest 2 | 2 2 2 2 2 2 2 2 2 2 . . . 1 Hottest 70 | 60 60 60 60 46 70 48 48 50 53 . . . 30 Shots Fired 978 | 8 88 66 170 24 109 29 26 326 118 . . . 14 Gun 947 | 8 88 66 163 24 99 29 26 317 118 . . . 9 Cannon . | . . . . . . . . . . . . . . Launcher 26 | . . . 7 . 10 . . 9 . . . . . Special 5 | . . . . . . . . . . . . . 5 Kinetic 844 | 4 61 33 154 24 96 2 26 317 118 . . . 9 Thermal 74 | . 27 33 9 . 3 . . . . . . . 2 Explosive 21 | . . . 7 . 10 . . 4 . . . . . Electromagnetic 36 | 4 . . . . . 27 . 5 . . . . . Robot Hit Streak 44 | 1 12 7 24 5 16 14 11 44 24 . . . 3 Robot Miss Streak 6 | 1 3 3 4 1 4 4 1 3 2 . . . 6 Penetration Max 1 | . . . . . 1 . . . . . . . . Secondary Targets 7 | . . 2 1 . . . . 2 2 . . . . Max Gunslinging Chain 1 | . . 1 1 . . . . 1 1 . . . . Autonomous 27 | . . . . . . 27 . . . . . . . Shots Hit Robots 732 | 4 60 41 111 16 89 27 21 255 100 . . . 8 Core Hits 347 | 2 26 14 55 9 43 14 10 123 47 . . . 4 Critical Hits 16 | . . . 1 . 5 . 1 3 2 . . . 4 Critical Kills 4 | . . . . . . . 1 1 1 . . . 1 Critical Parts Destroyed 7 | . . . 1 . 2 . . 2 1 . . . 1 Melee Attacks 48 | . . . . . 19 . . 1 12 . 2 11 3 Impact . | . . . . . . . . . . . . . . Slashing 48 | . . . . . 19 . . 1 12 . 2 11 3 Piercing . | . . . . . . . . . . . . . . Sneak Attacks 6 | . . . . . . . . . 3 . . . 3 Combat Hostiles 1 | . . . . . . . . . . . . . 1 Follow-up Attacks . | . . . . . . . . . . . . . . Damage Inflicted 14356 | 66 671 332 1690 298 2209 609 315 5667 2140 . . . 359 Guns 10446 | 66 671 320 1387 298 949 609 283 4231 1566 . . . 66 Cannons . | . . . . . . . . . . . . . . Explosions 2310 | . . . 297 . 717 . . 1296 . . . . . Melee 1396 | . . . . . 543 . . . 560 . . . 293 Ramming 204 | . . 12 6 . . . 32 140 14 . . . . Kinetic 9290 | 51 418 119 1298 298 932 28 283 4231 1566 . . . 66 Thermal 653 | . 253 201 89 . 17 . . 93 . . . . . Explosive 1612 | . . . 297 . 717 . . 598 . . . . . Electromagnetic 1201 | 15 . . . . . 581 . 605 . . . . . Impact . | . . . . . . . . . . . . . . Slashing 1396 | . . . . . 543 . . . 560 . . . 293 Piercing . | . . . . . . . . . . . . . . Highest Corruption 8 | . . . . . 8 . . . . . . . . Average Corruption 5 | . . . . . 5 . . . . . . . . Corruption Purged 8 | . . . . . 8 . . . . . . . . Effects 18 | . . . . . 18 . . . . . . . . Message Errors 5 | . . . . . 5 . . . . . . . . Matter Fused 6 | . . . . . 6 . . . . . . . . Heat Flow Errors 1 | . . . . . 1 . . . . . . . . Energy Discharges 2 | . . . . . 2 . . . . . . . . Data Loss (minor) 1 | . . . . . 1 . . . . . . . . Targeting Errors 1 | . . . . . 1 . . . . . . . . Weapon Failures 2 | . . . . . 2 . . . . . . . . Overload Shots . | . . . . . . . . . . . . . . Overflow Damage 125 | . . . . . 21 . . 28 72 . . . 4 Projectiles . | . . . . . . . . . . . . . . Explosions 49 | . . . . . 21 . . 28 . . . . . Melee 76 | . . . . . . . . . 72 . . . 4 Knockbacks 1 | . . . . . . . . 1 . . . . . Impact 1 | . . . . . . . . 1 . . . . . Kinetic . | . . . . . . . . . . . . . . Secondary . | . . . . . . . . . . . . . . Self-Inflicted Damage 43 | . . . . . 43 . . . . . . . . Shots 1 | . . . . . 1 . . . . . . . . Rammed 22 | . . 1 2 . . . 3 13 3 . . . . Targets Rammed 23 | . . 1 2 . . . 3 14 3 . . . . Kicked . | . . . . . . . . . . . . . . Crushed 1 | . . . . . . . . 1 . . . . . Highest Temperature 335 | 2 81 61 335 13 194 26 194 311 180 . . . 45 Average Temperature 61 | 2 32 27 37 9 31 15 69 85 51 . . . 19 Received Heat Transfer 1616 | . 180 75 210 40 49 36 81 585 198 . . . 162 Effects 5 | . . . . . . . . 5 . . . . . Energy Bleed 1 | . . . . . . . . 1 . . . . . Interference 4 | . . . . . . . . 4 . . . . . Siege Activations . | . . . . . . . . . . . . . . Robots Corrupted 1 | . . . . . . 1 . . . . . . . Combat Hostiles 1 | . . . . . . 1 . . . . . . . Parts Fried 5 | . . . . . . 2 . 3 . . . . . Impact Corruptions . | . . . . . . . . . . . . . . Robots Melted . | . . . . . . . . . . . . . . Combat Hostiles . | . . . . . . . . . . . . . . Parts Melted . | . . . . . . . . . . . . . . Heat Transferred 1487 | . 575 475 200 . 37 . . 200 . . . . . Parts Sabotaged . | . . . . . . . . . . . . . . Parts Stolen . | . . . . . . . . . . . . . . Parts Stripped . | . . . . . . . . . . . . . . Power Chain Reactions 3 | . . . . . . . . 3 . . . . . Missiles Intercepted . | . . . . . . . . . . . . . . Alert | -11 -10 -10 -9 -9 -9 -8 -8 -8 -7 -7 -7 -7 -7 ------- Run | Scr Mat Min Mat Min Exi Min Mat Sto Fac Low Low Zio Dee Peak Influence 651 | 5 214 140 496 152 . 150 191 651 556 . . . . Average Influence 239 | 3 98 76 219 133 . 88 113 354 412 . . . . Maximum Alert Level 2 | . 1 . 2 . . . . 2 2 . . . . Low Security (%) 52 | 100 85 100 58 100 . 100 100 17 . . . . . Level 1 26 | . 14 . 32 . . . . 41 44 . . . . Level 2 21 | . . . 8 . . . . 40 55 . . . . Level 3 . | . . . . . . . . . . . . . . Level 4 . | . . . . . . . . . . . . . . Level 5 . | . . . . . . . . . . . . . . High Security . | . . . . . . . . . . . . . . Max Security . | . . . . . . . . . . . . . . Squads Dispatched 19 | . 2 . 3 . . . 1 8 5 . . . . Investigation 3 | . 1 . 1 . . . . 1 . . . . . Extermination 1 | . . . . . . . . . 1 . . . . Reinforcement 8 | . 1 . 2 . . . 1 3 1 . . . . Assault 3 | . . . . . . . . 3 . . . . . Garrison 4 | . . . . . . . . 1 3 . . . . Intercept . | . . . . . . . . . . . . . . Construction Impeded . | . . . . . . . . . . . . . . Haulers Reinforced 1 | . . . . . . . . . 1 . . . . Stealth | -11 -10 -10 -9 -9 -9 -8 -8 -8 -7 -7 -7 -7 -7 --------- Run | Scr Mat Min Mat Min Exi Min Mat Sto Fac Low Low Zio Dee Distress Signals 10 | . 1 . 3 . . . . 6 . . . . . Communications Jammed . | . . . . . . . . . . . . . . Distress Signals . | . . . . . . . . . . . . . . Times Spotted 215 | . 19 8 47 8 23 12 10 63 20 2 . . 3 Peak Tracking Total 8 | . 6 3 4 7 7 4 6 8 5 2 . . 3 Tactical Retreats 16 | . 3 . 1 1 3 2 2 3 1 . . . . Traps | -11 -10 -10 -9 -9 -9 -8 -8 -8 -7 -7 -7 -7 -7 ------- Run | Scr Mat Min Mat Min Exi Min Mat Sto Fac Low Low Zio Dee Traps Triggered 3 | . . . . . . . . 3 . . . . . Indirectly . | . . . . . . . . . . . . . . Trap Hack Attempts . | . . . . . . . . . . . . . . Triggered . | . . . . . . . . . . . . . . Disarmed 10 | . 10 . . . . . . . . . . . . Reprogrammed . | . . . . . . . . . . . . . . Reused . | . . . . . . . . . . . . . . Traps Extracted . | . . . . . . . . . . . . . . Installed . | . . . . . . . . . . . . . . Triggered . | . . . . . . . . . . . . . . Machines | -11 -10 -10 -9 -9 -9 -8 -8 -8 -7 -7 -7 -7 -7 ---------- Run | Scr Mat Min Mat Min Exi Min Mat Sto Fac Low Low Zio Dee Machines Disabled 18 | . . . 2 . 11 . . 5 . . . . . Max in Single Turn 3 | . . . 1 . 3 . . 1 . . . . . Garrison Access 1 | . . . . . . . . 1 . . . . . Machines Sabotaged . | . . . . . . . . . . . . . . Garrisons Compromised . | . . . . . . . . . . . . . . Overloaded Fab Kills . | . . . . . . . . . . . . . . Fab Network Shutdowns . | . . . . . . . . . . . . . . Hacking | -11 -10 -10 -9 -9 -9 -8 -8 -8 -7 -7 -7 -7 -7 --------- Run | Scr Mat Min Mat Min Exi Min Mat Sto Fac Low Low Zio Dee Machines Accessed 34 | . 7 . 5 . 2 . 1 11 7 . . 1 . Terminals 24 | . 5 . 5 . . . 1 10 3 . . . . Fabricators 1 | . . . . . . . . . 1 . . . . Repair Stations 2 | . . . . . . . . . 2 . . . . Recycling Units 2 | . 2 . . . . . . . . . . . . Scanalyzers 1 | . . . . . . . . . 1 . . . . Garrison Access 1 | . . . . . . . . 1 . . . . . Total Hacks 118 | . 25 . 13 . 2 . 10 47 16 . . 5 . Successful 65 | . 15 . 3 . 2 . 7 23 10 . . 5 . Failed 51 | . 9 . 10 . . . 3 23 6 . . . . Catastrophic 2 | . . . 1 . . . . . 1 . . . . Database Lockouts 2 | . 1 . . . . . . 1 . . . . . Manual 72 | . 16 . 7 . 1 . 10 37 1 . . . . Terminals 89 | . 15 . 13 . . . 10 46 5 . . . . Fabricators 2 | . . . . . . . . . 2 . . . . Repair Stations 3 | . . . . . . . . . 3 . . . . Recycling Units 10 | . 10 . . . . . . . . . . . . Scanalyzers 6 | . . . . . . . . . 6 . . . . Garrison Access 1 | . . . . . . . . 1 . . . . . Terminal Hacks 37 | . 6 . 1 . 2 . 5 17 1 . . 5 . Record 1 | . . . . . 1 . . . . . . . . Part Schematic 5 | . . . . . . . . . . . . 5 . Prototype ID Bank 11 | . 2 . . . . . 3 6 . . . . . Open Door 2 | . . . . . . . . 2 . . . . . Branch Access Points 2 | . . . . . . . 1 . 1 . . . . Terminal Index 1 | . . . . . . . . 1 . . . . . Unreport Threat 2 | . . . . . . . . 2 . . . . . Locate Traps 4 | . 1 . . . . . . 3 . . . . . Disarm Traps 2 | . 2 . . . . . . . . . . . . Recall Investigation 2 | . 1 . . . . . . 1 . . . . . Hauler Manifests 3 | . . . 1 . . . 1 1 . . . . . Registered Components 1 | . . . . . . . . 1 . . . . . EX-Prototype ID Bank 1 | . . . . . 1 . . . . . . . . Fabricator Hacks 1 | . . . . . . . . . 1 . . . . Build 1 | . . . . . . . . . 1 . . . . Repair Station Hacks 3 | . . . . . . . . . 3 . . . . Scan Component 2 | . . . . . . . . . 2 . . . . Repair 1 | . . . . . . . . . 1 . . . . Recycling Unit Hacks 2 | . 2 . . . . . . . . . . . . Retrieve Components 2 | . 2 . . . . . . . . . . . . Scanalyzer 4 | . . . . . . . . . 4 . . . . Insert Component 2 | . . . . . . . . . 2 . . . . Analyze 2 | . . . . . . . . . 2 . . . . Garrison Access Hacks 1 | . . . . . . . . 1 . . . . . Seal Access 1 | . . . . . . . . 1 . . . . . Unauthorized Hacks 44 | . 15 . 6 . . . 4 17 2 . . . . Terminals 10 | . 1 . 2 . . . 2 5 . . . . . Track 1 | . . . . . . . . 1 . . . . . Botnet 6 | . 1 . 1 . . . 1 3 . . . . . Disrupt 1 | . . . 1 . . . . . . . . . . Operators 2 | . . . . . . . 1 1 . . . . . Fabricators 1 | . . . . . . . . . 1 . . . . Siphon 1 | . . . . . . . . . 1 . . . . Repair Stations . | . . . . . . . . . . . . . . Recycling Units 6 | . 6 . . . . . . . . . . . . Monitor 1 | . 1 . . . . . . . . . . . . Reject 2 | . 2 . . . . . . . . . . . . Recyclers 1 | . 1 . . . . . . . . . . . . Mask 2 | . 2 . . . . . . . . . . . . Scanalyzers . | . . . . . . . . . . . . . . Garrison Access . | . . . . . . . . . . . . . . Data Cores Recovered . | . . . . . . . . . . . . . . Used . | . . . . . . . . . . . . . . Hacking Detections 27 | . 6 . 5 . . . 1 9 6 . . . . Full Trace Events 3 | . . . 2 . . . . 1 . . . . . Feedback Events . | . . . . . . . . . . . . . . Feedback Blocked . | . . . . . . . . . . . . . . Robot Schematics Acquired . | . . . . . . . . . . . . . . Robots Built . | . . . . . . . . . . . . . . Matter 189 | . . . . . . . . . 189 . . . . Time 67 | . . . . . . . . . 67 . . . . Total Robot Build Rating . | . . . . . . . . . . . . . . Part Schematics Acquired 6 | . . . . . . . . . 1 . . 5 . Parts Built . | . . . . . . . . . . . . . . Matter . | . . . . . . . . . . . . . . Time . | . . . . . . . . . . . . . . Total Part Build Rating . | . . . . . . . . . . . . . . Parts Repaired 1 | . . . . . . . . . 1 . . . . Time 19 | . . . . . . . . . 19 . . . . Parts Recycled . | . . . . . . . . . . . . . . Recycled Matter . | . . . . . . . . . . . . . . Retrieved Matter . | . . . . . . . . . . . . . . Retrieved Components 10 | . 10 . . . . . . . . . . . . Parts Scanalyzed 2 | . . . . . . . . . 2 . . . . Part Schematics Acquired 1 | . . . . . . . . . 1 . . . . Parts Damaged . | . . . . . . . . . . . . . . Bothacking | -11 -10 -10 -9 -9 -9 -8 -8 -8 -7 -7 -7 -7 -7 ------------ Run | Scr Mat Min Mat Min Exi Min Mat Sto Fac Low Low Zio Dee Used RIF Installer . | . . . . . . . . . . . . . . Robots Hacked . | . . . . . . . . . . . . . . Non-combat . | . . . . . . . . . . . . . . Combat . | . . . . . . . . . . . . . . Robot Hacks Applied . | . . . . . . . . . . . . . . Relay Couplers Released . | . . . . . . . . . . . . . . Robots Rewired . | . . . . . . . . . . . . . . Allies Hacked . | . . . . . . . . . . . . . . Hacks Repelled . | . . . . . . . . . . . . . . Allies | -11 -10 -10 -9 -9 -9 -8 -8 -8 -7 -7 -7 -7 -7 -------- Run | Scr Mat Min Mat Min Exi Min Mat Sto Fac Low Low Zio Dee Total Allies 13 | . . . . . . . . 5 . . . 6 2 Largest Group 6 | . . . . . . . . 3 1 . . 6 6 Highest-Rated Group 160 | . . . . . . . . 93 31 . . 160 160 Highest-Rated Ally 70 | . . . . . . . . 31 31 . . 31 70 Total Orders . | . . . . . . . . . . . . . . Ally Attacks 51 | . . . . . . . . 20 2 . . . 29 Total Damage 1016 | . . . . . . . . 320 42 . . . 654 Kills 7 | . . . . . . . . 6 . . . . 1 Allies Corrupted . | . . . . . . . . . . . . . . Allies Melted . | . . . . . . . . . . . . . . Field Lobotomies 2 | . . . . . . . . . . . . . 2 Intel | -11 -10 -10 -9 -9 -9 -8 -8 -8 -7 -7 -7 -7 -7 ------- Run | Scr Mat Min Mat Min Exi Min Mat Sto Fac Low Low Zio Dee Robot Analysis Total . | . . . . . . . . . . . . . . Derelict Logs Recovered 3 | . . . . . . . . . . 1 . 2 . Drone Launches . | . . . . . . . . . . . . . . Drone Recoveries . | . . . . . . . . . . . . . . Exploration | -11 -10 -10 -9 -9 -9 -8 -8 -8 -7 -7 -7 -7 -7 ------------- Run | Scr Mat Min Mat Min Exi Min Mat Sto Fac Low Low Zio Dee Turns Passed 10193 | 44 959 443 1297 454 2451 441 294 2162 858 87 70 444 189 Spaces Moved 5792 | 25 435 186 523 222 1131 261 131 804 471 244 224 934 201 Core . | . . . . . . . . . . . . . . Treads 3227 | . 391 186 523 222 774 . 38 804 289 . . . . Legs 780 | 25 44 . . . 357 261 93 . . . . . . Wheels . | . . . . . . . . . . . . . . Hover . | . . . . . . . . . . . . . . Flight 1785 | . . . . . . . . . 182 244 224 934 201 Fastest Speed 26 | 120 120 180 160 180 120 156 156 180 26 26 29 26 26 Average Speed 130 | 120 171 180 173 180 160 156 170 193 126 28 29 35 27 Slowest Speed 220 | 120 180 180 180 180 180 156 220 220 190 29 29 99 29 Overloaded Moves . | . . . . . . . . . . . . . . Propulsion Burnouts . | . . . . . . . . . . . . . . Robots Hopped 3 | . . . . . . . . . 1 . 2 . . Cave-ins Triggered . | . . . . . . . . . . . . . . Exploration Rate (%) 52 | 3 71 55 51 59 86 63 17 92 19 55 49 84 26 Regions Visited 13 Branch Regions 9 Pre-discovered Areas 3 | . . . . . 1 . . . . . . 2 . Known Exits Taken 3 | . . . . . . . 1 . 1 . . 1 . Unknown Exits Taken 10 | 1 1 1 1 1 1 1 . 1 . 1 1 . . Scrap Searched 14 | . . 2 . 1 . 1 . . . 6 . 4 . Spaces Dug 16 | . . . 11 . . . . . 1 . 2 2 . Terrain Destroyed 116 | . . . 57 . 14 . . 39 1 . 2 2 1 Melee 5 | . . . . . . . . . 1 . 2 2 . Projectile 2 | . . . . . 1 . . . . . . . 1 AOE 109 | . . . 57 . 13 . . 39 . . . . . Actions | -11 -10 -10 -9 -9 -9 -8 -8 -8 -7 -7 -7 -7 -7 --------- Run | Scr Mat Min Mat Min Exi Min Mat Sto Fac Low Low Zio Dee Total 7729 | 30 573 233 751 253 1648 295 182 1252 676 259 223 1034 320 Wait 955 | . 40 6 82 20 308 23 21 192 80 12 . 81 90 Move 5773 | 24 434 185 522 221 1130 260 130 803 468 243 219 933 201 Hop 3 | . . . . . . . . . 1 . 2 . . Pick Up 131 | . 25 4 21 . 41 4 4 22 5 1 . 3 1 Fast Attach 36 | 1 2 . 5 . 9 1 3 6 5 1 . 1 2 Attach 58 | . 4 3 7 . 20 1 1 1 13 1 . 2 5 Detach 13 | . 1 . 2 . 5 . . 2 1 . . . 2 Swap 43 | 1 5 . 7 . 8 . 3 15 3 . . . 1 Drop 134 | . 18 1 13 . 35 5 4 26 26 1 . 4 1 Fire 511 | 4 44 33 90 12 73 1 13 168 59 . . . 14 Melee 47 | . . . . . 19 . . 1 12 . 2 10 3 Ram . | . . . . . . . . . . . . . . Kick . | . . . . . . . . . . . . . . Crush 23 | . . 1 2 . . . 3 14 3 . . . . Escape Stasis 2 | . . . . . . . . 2 . . . . . Rewire . | . . . . . . . . . . . . . . Trap . | . . . . . . . . . . . . . . Miscellaneous . | . . . . . . . . . . . . . . Route ------- -11/Scrapyard -10/Materials (discovered 4 exits: *Mat x2 / [*Min x2]) -10/Mines (discovered 2 exits: *Mat x2) -9/Materials (discovered 2 exits: [*Min x2]) -9/Mines (discovered 2 exits: *Mat / *Exi) -9/Exiles -8/Mines -8/Materials (discovered 2 exits: *Sto x2) -8/Storage -7/Factory (discovered 2 exits: *Low x2) -7/Lower Caves -7/Lower Caves (discovered 2 exits: [*Fac] / *Zio) -7/Zion (discovered 2 exits: *Dee / [*Pro]) -7/Deep Caves History --------- Turn | Location | Event 13 | -11/Scrapyard | Discovered new exit (range 3) 45 | -11/Scrapyard | Entered Materials 297 | -10/Materials | Discovered new exit (range 11) 333 | -10/Materials | Build established: Mutant 376 | -10/Materials | Discovered new exit (range 6) 582 | -10/Materials | Discovered new exit (range 10) 631 | -10/Materials | Discovered new exit (range 3) 900 | -10/Materials | Central database locked down 1004 | -10/Materials | Entered Mines 1010 | -10/Mines | Core integrity fell below 50% 1293 | -10/Mines | Discovered new exit (range 6) 1339 | -10/Mines | Received a Rocket Launcher from a helpful Derelict 1408 | -10/Mines | Core integrity fell below 20% 1429 | -10/Mines | Discovered new exit (range 9) 1447 | -10/Mines | Entered Materials 1447 | -9/Materials | Evolved 2 slots: Propulsion x1, Utility x1 1480 | -9/Materials | Discovered new exit (range 4) 1963 | -9/Materials | Build established: Scavenger-Mutant 2233 | -9/Materials | Discovered new exit (range 15) 2468 | -9/Materials | Build established: Hauler-Mutant 2744 | -9/Materials | Entered Mines 2850 | -9/Mines | Discovered new exit (range 7) 2987 | -9/Mines | Destroyed YI-UF0 3052 | -9/Mines | Assembled infested the area 3057 | -9/Mines | Assisted by a Guerilla fighting off Assembled 3191 | -9/Mines | Deemed a non-threat by the Exiles lab entrance 3191 | -9/Mines | Discovered new exit (range 5) 3198 | -9/Mines | Entered Exiles 3240 | -9/Exiles | Met 8R-AWN 3360 | -9/Exiles | Met EX-HEX 3455 | -9/Exiles | Met EX-DEC 3485 | -9/Exiles | Learned location of Zion (-7) 3758 | -9/Exiles | Met EX-BIN 3780 | -9/Exiles | Aligned with FarCom system 3782 | -9/Exiles | Given EX-Vault access code 3823 | -9/Exiles | Opened EX-Vault 3832 | -9/Exiles | Found Field Lobotomy Kit 3838 | -9/Exiles | Found PSU Rigger 3848 | -9/Exiles | Found Skeleton Box 3885 | -9/Exiles | Warned to stay clear of 0b10 Research branches 4008 | -9/Exiles | Discovered new exit (range 14) 4329 | -9/Exiles | Attacked by the Exiles 4427 | -9/Exiles | Build established: Scavenger-Mutant 4430 | -9/Exiles | Destroyed 8R-AWN 4436 | -9/Exiles | Lost 8 parts (4n2u2w) 4440 | -9/Exiles | Found Prototype Ballistic Gun 4792 | -9/Exiles | Core integrity fell below 50% 4825 | -9/Exiles | Lost 7 parts (1p2n2u2w) 4882 | -9/Exiles | Core integrity fell below 20% 4896 | -9/Exiles | Identified 8R-AWN's Boregun 4910 | -9/Exiles | Destroyed EX-DEC 4911 | -9/Exiles | Lost 3 parts (3w) 4956 | -9/Exiles | Destroyed EX-HEX 4973 | -9/Exiles | Destroyed EX-BIN 4988 | -9/Exiles | Found Deploy-a-Sentry 4991 | -9/Exiles | Found Prototype Energy Gun 4991 | -9/Exiles | Identified AWS/EX-DEC 5062 | -9/Exiles | Found Prototype Device 5062 | -9/Exiles | Identified System Purifier 5649 | -9/Exiles | Stole three prototypes: PSU Rigger, Field Lobotomy Kit, Deploy-a-Sentry 5649 | -9/Exiles | Entered Mines 6074 | -8/Mines | Discovered new exit (range 11) 6090 | -8/Mines | Entered Materials 6090 | -8/Materials | Evolved 2 slots: Utility x2 6114 | -8/Materials | Identified exit to Storage 6384 | -8/Materials | Entered Storage 6777 | -8/Storage | Met a pair of Derelict thieves 7086 | -8/Storage | Build established: Hauler-Mutant 7471 | -8/Storage | Discovered new exit (range 16) 7788 | -8/Storage | Garrison activated, responded to threat 8283 | -8/Storage | Allied Derelicts emerged from ambush trap array 8317 | -8/Storage | Central database locked down 8384 | -8/Storage | First assault squad dispatched 8546 | -8/Storage | Entered Factory 8546 | -7/Factory | Accompanied by 1 ally 8546 | -7/Factory | Evolved 2 slots: Propulsion x1, Utility x1 8798 | -7/Factory | Garrison activated, responded to threat 8959 | -7/Factory | Garrison activated, responded to threat 9142 | -7/Factory | Garrison activated, responded to threat 9238 | -7/Factory | Repaired Arm. Treads 9323 | -7/Factory | Identified exit to Lower Caves 9404 | -7/Factory | Entered Lower Caves 9414 | -7/Lower Caves | Learned Factory emergency access door positions 9487 | -7/Lower Caves | Spotted G8-USI(f) 9488 | -7/Lower Caves | Encountered a Master Thief 9488 | -7/Lower Caves | Discovered new exit (range 4) 9490 | -7/Lower Caves | Spotted NS-ERM(f) 9491 | -7/Lower Caves | Encountered a Master Thief 9491 | -7/Lower Caves | Entered another Lower Caves area 9498 | -7/Lower Caves | Encountered a Warlord checkpoint 9498 | -7/Lower Caves | Discovered new exit (range 14) 9513 | -7/Lower Caves | Spotted B-75 Beast 9560 | -7/Lower Caves | Discovered new exit (range 6) 9561 | -7/Lower Caves | Entered Zion 9581 | -7/Zion | Build established: Scavenger-Sprinter 9583 | -7/Zion | Received a visual enhancement algorithm 9626 | -7/Zion | Learned Factory trap positions 9634 | -7/Zion | Learned 8 Factory zone layouts 9648 | -7/Zion | Given A8's code to call for help 9678 | -7/Zion | Learned location of Warlord (-5) 9721 | -7/Zion | Gained Derelict followers 9775 | -7/Zion | Discovered new exit (range 15) 9871 | -7/Zion | Discovered new exit (range 3) 9964 | -7/Zion | Identified exit to Deep Caves 10005 | -7/Zion | Entered Deep Caves 10005 | -7/Deep Caves | Accompanied by 6 allies 10106 | -7/Deep Caves | Attacked by Z-Imprinter 10125 | -7/Deep Caves | Assimilated KU-AP8(z) with FLK Orb 10127 | -7/Deep Caves | Assimilated J3-B6C(z) with FLK Orb 10140 | -7/Deep Caves | Allies destroyed Z-Imprinter 10168 | -7/Deep Caves | Lost 6 parts (1p1n1u3w) 10194 | -7/Deep Caves | Self-destructed Last Messages --------------- 10139_ P9-KKY(b) heat short circuits Lgt. Treads. 10139_ P9-KKY(b) overheating. 10140_ HV Slug penetrates P9-KKY(b). 10140_ P9-KKY(b) suffers critical hit. 10140_ P9-KKY(b) destroyed. 10140_ HV Slug penetrates Wall. 10140_ Z-Imprinter: "You cannot stop us! Another will take my place! Derelicts will one day ru..." 10140_ Z-Imprinter destroyed. 10141_ Dropped 8R-AWN's Boregun. 10142_ Acquired Prototype Device. 10142_ Identified Exp. Heat Sink. 10144_ Acquired 51 matter. 10145_ Acquired Prototype Reactor. 10146_ Acquired 28 matter. 10146_ Acquired Prototype Storage. 10146_ Identified Zio. Biocell. 10148_ Acquired 10 matter. 10151_ Identified Zio. Light DM Reactor. 10152_ Acquired 10 matter. Map ----- +----------------------------------------------------+ | | | | | | | | | | | | | | | | | | | | | | | ?????????????????????????????????????????????????? | | ???????????????????????????????????????###???????? | | ??????????????????????????????????????## ##??????? | | ??????????????????????????????????????# #??????? | | ???????????????????######?????????##### ##?????? | | ???????????? ????##; #???????## ## #?????? | | ?????????? ##### #?????## ## #?????? | | ??????? ?????## ?# #????### | | ????? ?????# ### #???## # | | ??? #?????# ## ##### | | ?? #?????# | | ?" ##????# | | ?" ###### | | ?" z %![ % | | "" *@=! | | | z= *! | | "" ! !% ;##### ### | | "" %[ *###???## #### | | "" = ###??????## ####### | | "" *%! #?????????#### ##???? | | " ##???????????## #???? | | #????????????# #???? | | #??????####?## #???? | | #??????# ## #???? | | ##??????# #???? | | #???????# #???# | | "" #??????# ##?### | | #??????# #### | | " ##??????# ## | | "" ##???????# | | """ #???????## | | """ ??????## ## | | ?"" ????## ##### | | ?" #???# ##??#### | | ? #????# #####?# | | ?? #????## ##? | | ???? ??????# ## | | ??????? ??????????????## | | ????????? ????????????????# | +----------------------------------------------------+ Best States ------------- Heat Dissipation 34 Energy Generation 27 Energy Capacity 1100 Matter Stores 300 Matter Capacity 300 Sight Range 16 Terrain Scan Density 10 Additional Mass Support 12 Armor Coverage 300 Propulsion Shielding 33 Weapon Cycling 25 Evasion (%) 64 Targeting Accuracy 8 Core Analysis 10 Recoil Reduction 4 Offensive Hacking 30 Item Schematics ----------------- Cld. VTOL Module | -7/Factory | Scanalyzed Beamcaster | -7/Zion | Free Riot Gun | -7/Zion | Free Battle Rifle | -7/Zion | Free Barrage Gun | -7/Zion | Free Slug Cannon | -7/Zion | Free Robot Schematics ------------------ None Fabricated ------------ Nothing Alien Tech Used ----------------- None Achievements -------------- None Challenges ------------ None Game ------ Seed StorageProtonMatter Manual? 0 Play Time 01:40:28 Cumulative 602.6 hours Start 2019.11.15 @ 15:40:44 End 2019.11.16 @ 13:47:09 Sessions 5 Manual Loads 0 Difficulty Rogue Special Mode None Game No. 385 Rogue 385 Adventurer 0 Explorer 0 Win Type - Total 99 Types 66/6/7/10/5/1/4 Lore% 96 Gallery% 94 Achievement% 80 Wizard Run 0 Options --------- ASCII 0 Keyboard 0 Movement Numpad Keybinds 0 Fullscreen 2 Font 18/SmallcapsGlow Map View 76x50 Tactical HUD 1 Map Filters NONE Filters NONE Steam 1 RUN: 5c347a4a-9195-4590-8208-b85643c8d19a